fUSD/lending_fUSD_20240116
["ID","MTS","AMOUNT","RATE_DAILY","PERIOD"]
[311778014,1705385465696,-502.58,0.00022696,2]
[311778015,1705385465705,-500.0,0.00022696,2]
[311778016,1705385465714,-221.95975668,0.00022696,2]
[311778017,1705385465723,-507.48519091,0.00022696,2]
[311778018,1705385465733,-500.0,0.00022696,2]
[311778019,1705385465744,-500.0,0.00022696,2]
[311778020,1705385465753,-500.0,0.00022696,2]
[311778021,1705385465763,-500.0,0.00022696,2]
[311778022,1705385465773,-500.0,0.00022696,2]
[311778023,1705385465783,-500.0,0.00022696,2]
[311778024,1705385465793,-500.0,0.00022696,2]
[311778025,1705385465803,-250.0,0.00022696,2]
[311778026,1705385465812,-500.0,0.00022696,2]
[311778027,1705385465822,-500.0,0.00022696,2]
[311778028,1705385465831,-500.0,0.00022696,2]
[311778029,1705385465840,-500.0,0.00022696,2]
[311778030,1705385465850,-500.0,0.00022696,2]
[311778031,1705385465861,-500.0,0.00022696,2]
[311778032,1705385465870,-533.88,0.00022696,2]
[311778033,1705385465880,-500.0,0.00022696,2]
[311778034,1705385465889,-500.0,0.00022696,2]
[311778035,1705385465898,-500.0,0.00022696,2]
[311778036,1705385465908,-503.79,0.00022696,2]
[311778037,1705385465918,-500.0,0.00022696,2]
[311778038,1705385465927,-500.23,0.00022696,2]
[311778039,1705385465937,-500.0,0.00022696,2]
[311778040,1705385465946,-500.0,0.00022696,2]
[311778041,1705385465956,-710.29,0.00022696,2]
[311778042,1705385465965,-500.0,0.00022696,2]
[311778043,1705385465976,-500.0,0.00022696,2]
[311778044,1705385465985,-500.0,0.00022696,2]
[311778045,1705385465995,-605.84275392,0.00022696,2]
[311778046,1705385466004,-500.0,0.00022696,2]
[311778047,1705385466014,-500.0,0.00022696,2]
[311778048,1705385466024,-500.0,0.00022696,2]
[311778049,1705385466033,-728.97,0.00022696,2]
[311778050,1705385466043,-500.0,0.00022696,2]
[311778051,1705385466052,-500.0,0.00022696,2]
[311778052,1705385466062,-545.84,0.00022696,2]
[311778053,1705385466072,-3138.4,0.00022696,2]
[311778054,1705385466083,-500.0,0.00022696,2]
[311778055,1705385466092,-500.0,0.00022696,2]
[311778056,1705385466102,-656.14,0.00022696,2]
[311778057,1705385466113,-500.0,0.00022696,2]
[311778058,1705385466122,-388.21159255,0.00022696,2]
[311778059,1705385466131,-768.22,0.00022696,2]
[311778060,1705385466140,-500.0,0.00022696,2]
[311778061,1705385466154,-728.04,0.00022696,2]
[311778062,1705385466164,-500.0,0.00022696,2]
[311778063,1705385466175,-500.0,0.00022696,2]
[311778064,1705385466184,-516.39175407,0.00022696,2]
[311778065,1705385466194,-553.84,0.00022696,2]
[311778066,1705385466204,-688.67,0.00022696,2]
[311778067,1705385466214,-500.0,0.00022696,2]
[311778068,1705385466224,-622.63190339,0.00022696,2]
[311778069,1705385466234,-500.0,0.00022696,2]
[311778070,1705385466244,-500.0,0.00022696,2]
[311778071,1705385466253,-500.0,0.00022696,2]
[311778072,1705385466263,-500.0,0.00022696,2]
[311778073,1705385466273,-591.34,0.00022696,2]
[311778074,1705385466283,-673.13,0.00022696,2]
[311778075,1705385466292,-500.0,0.00022696,2]
[311778076,1705385466302,-289.75896263,0.00022696,2]
[311778077,1705385466312,-190.08093972,0.00022696,2]
[311778078,1705385466321,-585.08,0.00022696,2]
[311778079,1705385466331,-503.14,0.00022696,2]
[311778080,1705385466341,-500.0,0.00022696,2]
[311778081,1705385466352,-501.74089633,0.00022696,2]
[311778082,1705385466366,-416.7446295,0.00022696,2]
[311778083,1705385466377,-500.0,0.00022696,2]
[311778084,1705385466387,-500.0,0.00022696,2]
[311778085,1705385466397,-558.47,0.00022696,2]
[311778086,1705385466409,-532.5054153,0.00022696,2]
[311778087,1705385466419,-500.0,0.00022696,2]
[311778088,1705385466429,-531.28,0.00022696,2]
[311778089,1705385466439,-500.0,0.00022696,2]
[311778090,1705385466448,-500.0,0.00022696,2]
[311778091,1705385466458,-500.0,0.00022696,2]
[311778092,1705385466467,-500.0,0.00022696,2]
[311778093,1705385466477,-500.0,0.00022696,2]
[311778094,1705385466486,-611.38,0.00022696,2]
[311778095,1705385466496,-500.0,0.00022696,2]
[311778096,1705385466506,-500.0,0.00022696,2]
[311778097,1705385466516,-500.0,0.00022696,2]
[311778098,1705385466525,-611.84,0.00022696,2]
[311778099,1705385466535,-1637.07,0.00022696,2]
[311778100,1705385466545,-500.0,0.00022696,2]
[311778101,1705385466554,-313.26,0.00022696,2]
[311778102,1705385466564,-579.25,0.00022696,2]
[311778103,1705385466574,-500.0,0.00022696,2]
[311778104,1705385466584,-500.0,0.00022696,2]
[311778105,1705385466594,-567.94,0.00022696,2]
[311778106,1705385466606,-750.7,0.00022696,2]
[311778107,1705385466616,-590.29,0.00022696,2]
[311778108,1705385466627,-300.0,0.00022696,2]
[311778109,1705385466636,-500.0,0.00022696,2]
[311778110,1705385466646,-554.01,0.00022696,2]
[311778111,1705385466656,-531.99,0.00022696,2]
[311778112,1705385466670,-500.0,0.00022696,2]
[311778113,1705385466680,-500.0,0.00022696,2]
[311778114,1705385466690,-599.83,0.00022696,2]
[311778115,1705385466699,-500.0,0.00022696,2]
[311778116,1705385466708,-590.80263192,0.00022696,2]
[311778117,1705385466718,-530.72,0.00022696,2]
[311778118,1705385466727,-598.6,0.00022696,2]
[311778119,1705385466737,-500.0,0.00022696,2]
[311778120,1705385466747,-718.24,0.00022696,2]
[311778121,1705385466757,-583.34,0.00022696,2]
[311778122,1705385466766,-506.70646673,0.00022696,2]
[311778123,1705385466777,-500.0,0.00022696,2]
[311778124,1705385466786,-396.84430158,0.00022696,2]
[311778125,1705385466796,-500.0,0.00022696,2]
[311778126,1705385466805,-507.81,0.00022696,2]
[311778127,1705385466814,-500.0,0.00022696,2]
[311778128,1705385466824,-500.0,0.00022696,2]
[311778129,1705385466833,-500.0,0.00022696,2]
[311778130,1705385466843,-512.42,0.00022696,2]
[311778131,1705385466852,-500.0,0.00022696,2]
[311778132,1705385466864,-500.0,0.00022696,2]
[311778133,1705385466873,-500.0,0.00022696,2]
[311778134,1705385466883,-500.0,0.00022696,2]
[311778135,1705385466892,-500.0,0.00022696,2]
[311778136,1705385466902,-500.0,0.00022696,2]
[311778137,1705385466911,-500.0,0.00022696,2]
[311778138,1705385466921,-528.03,0.00022696,2]
[311778139,1705385466930,-500.0,0.00022696,2]
[311778140,1705385466939,-521.77,0.00022696,2]
[311778141,1705385466948,-614.53,0.00022696,2]
[311778142,1705385466958,-500.0,0.00022696,2]
[311778143,1705385466968,-500.0,0.00022696,2]
[311778144,1705385466980,-500.0,0.00022696,2]
[311778145,1705385466990,-500.0,0.00022696,2]
[311778146,1705385467002,-500.0,0.00022696,2]
[311778147,1705385467012,-648.66,0.00022696,2]
[311778148,1705385467022,-500.0,0.00022696,2]
[311778149,1705385467032,-500.0,0.00022696,2]
[311778150,1705385467042,-500.0,0.00022696,2]
[311778151,1705385467052,-613.81366474,0.00022696,2]
[311778152,1705385467064,-500.0,0.00022697,2]
[311778153,1705385467075,-596.99780727,0.00022697,2]
[311778154,1705385467084,-500.0,0.00022697,2]
[311778155,1705385467094,-500.0,0.00022697,2]
[311778156,1705385467104,-1031.73,0.00022697,2]
[311778157,1705385467115,-500.0,0.00022697,2]
[311778158,1705385467126,-575.33,0.00022697,2]
[311778159,1705385467136,-581.93,0.00022697,2]
[311778160,1705385467145,-589.23494831,0.00022697,2]
[311778161,1705385467155,-1008.36,0.00022697,2]
[311778162,1705385467164,-943.09,0.00022697,2]
[311778163,1705385467174,-794.72,0.00022697,2]
[311778164,1705385467183,-1197.26,0.00022697,2]
[311778165,1705385467194,-500.0,0.00022697,2]
[311778166,1705385467204,-662.61,0.00022697,2]
[311778167,1705385467213,-567.63,0.00022697,2]
[311778168,1705385467223,-1059.88,0.00022697,2]
[311778169,1705385467233,-601.13,0.00022697,2]
[311778170,1705385467242,-693.4,0.00022697,2]
[311778171,1705385467252,-608.26,0.00022697,2]
[311778172,1705385467262,-565.83,0.00022697,2]
[311778173,1705385467272,-872.62,0.00022697,2]
[311778174,1705385467281,-500.0,0.00022697,2]
[311778175,1705385467291,-784.69,0.00022697,2]
[311778176,1705385467300,-567.61,0.00022697,2]
[311778177,1705385467310,-748.92,0.00022697,2]
[311778178,1705385467320,-895.91,0.00022697,2]
[311778179,1705385467330,-531.83,0.00022697,2]
[311778180,1705385467339,-672.24,0.00022697,2]
[311778181,1705385467348,-581.46,0.00022697,2]
[311778182,1705385467359,-1433.83,0.00022697,2]
[311778183,1705385467368,-885.61,0.00022697,2]
[311778184,1705385467379,-983.53,0.00022697,2]
[311778185,1705385467389,-1059.65,0.00022697,2]
[311778186,1705385467399,-799.55,0.00022697,2]
[311778187,1705385467408,-890.62,0.00022697,2]
[311778188,1705385467417,-817.86,0.00022697,2]
[311778189,1705385467427,-3556.98,0.00022697,2]
[311778190,1705385467437,-740.72,0.00022697,2]
[311778191,1705385467446,-648.78,0.00022697,2]
[311778192,1705385467456,-2402.87,0.00022697,2]
[311778193,1705385467465,-568.91,0.00022697,2]
[311778194,1705385467474,-500.0,0.00022697,2]
[311778195,1705385467484,-500.0,0.00022697,2]
[311778196,1705385467493,-500.0,0.00022697,2]
[311778197,1705385467503,-713.16,0.00022697,2]
[311778198,1705385467513,-582.25,0.00022697,2]
[311778199,1705385467522,-861.5,0.00022697,2]
[311778200,1705385467532,-503.25,0.00022697,2]
[311778201,1705385467541,-527.13,0.00022697,2]
[311778202,1705385467550,-587.60771804,0.00022697,2]
[311778203,1705385467560,-523.83,0.00022697,2]
[311778204,1705385467569,-500.0,0.00022697,2]
[311778205,1705385467579,-1010.67,0.00022697,2]
[311778206,1705385467588,-530.70957321,0.00022697,2]
[311778207,1705385467598,-520.76,0.00022697,2]
[311778208,1705385467608,-815.32,0.00022697,2]
[311778209,1705385467618,-1100.25,0.00022697,2]
[311778210,1705385467627,-500.0,0.00022697,2]
[311778211,1705385467636,-500.0,0.00022698,2]
[311778212,1705385467646,-500.0,0.00022698,2]
[311778213,1705385467655,-937.12,0.00022698,2]
[311778214,1705385467664,-500.0,0.00022698,2]
[311778215,1705385467674,-531.89,0.00022698,2]
[311778216,1705385467692,-500.0,0.00022698,2]
[311778217,1705385467703,-500.0,0.00022698,2]
[311778218,1705385467712,-500.0,0.00022698,2]
[311778219,1705385467722,-500.0,0.00022698,2]
[311778220,1705385467731,-500.0,0.00022698,2]
[311778221,1705385467741,-500.0,0.00022698,2]
[311778222,1705385467750,-500.0,0.00022698,2]
[311778223,1705385467759,-500.0,0.00022698,2]
[311778224,1705385467769,-500.0,0.00022698,2]
[311778225,1705385467778,-500.0,0.00022698,2]
[311778226,1705385467788,-500.0,0.00022698,2]
[311778227,1705385467798,-500.0,0.00022698,2]
[311778228,1705385467807,-500.0,0.00022698,2]
[311778229,1705385467816,-1000.0,0.000227,2]
[311778230,1705385467826,-159.51,0.00022731,2]
[311778231,1705385467835,-2282.792,0.00022761,2]
[311778232,1705385467845,-7371.504,0.00022761,2]
[311778233,1705385467857,-5575.0,0.00022761,2]
[311778234,1705385467866,-19761.562,0.00022761,2]
[311778235,1705385467877,-8115.302,0.00022761,2]
[311778236,1705385467886,-27218.423,0.00022761,2]
[311778237,1705385467895,-2904.0,0.00022761,2]
[311778238,1705385467904,-4173.0,0.00022761,2]
[311778239,1705385467913,-257.349,0.00022761,2]
[311778240,1705385467922,-1032.255,0.00022761,2]
[311778241,1705385467932,-153.0,0.00022766,2]
[311778242,1705385467942,-159.67664272,0.0002277,2]
[311778243,1705385467952,-159.17,0.00022774,2]
[311778244,1705385467962,-200.0,0.00022815,2]
[311778245,1705385467971,-200.0,0.00022815,2]
[311778246,1705385467981,-800.0,0.00022815,2]
[311778247,1705385467991,-157.14,0.00022815,2]
[311778248,1705385468001,-200.0,0.00022816,2]
[311778249,1705385468013,-200.0,0.00022816,2]
[311778250,1705385468023,-200.0,0.00022816,2]
[311778251,1705385468033,-200.0,0.00022816,2]
[311778252,1705385468042,-800.0,0.00022816,2]
[311778253,1705385468051,-500.0,0.00022875,2]
[311778254,1705385468061,-500.0,0.00022877,2]
[311778255,1705385468071,-454.564,0.00022878,2]
[311778256,1705385468080,-2431.215,0.00022878,2]
[311778257,1705385468090,-1361.904,0.00022878,2]
[311778258,1705385468101,-945.0,0.00022878,2]
[311778259,1705385468113,-835.0,0.00022878,2]
[311778260,1705385468123,-305.876,0.00022878,2]
[311778261,1705385468133,-1853.0,0.00022878,2]
[311778262,1705385468143,-214.0,0.00022878,2]
[311778263,1705385468153,-1234.0,0.00022878,2]
[311778264,1705385468163,-593.0,0.00022878,2]
[311778265,1705385468173,-996.0,0.00022878,2]
[311778266,1705385468182,-426.0,0.00022878,2]
[311778267,1705385468191,-1933.0,0.00022878,2]
[311778268,1705385468201,-878.0,0.00022878,2]
[311778269,1705385468212,-235.0,0.00022878,2]
[311778270,1705385468221,-319.0,0.00022878,2]
[311778271,1705385468231,-508.0,0.00022878,2]
[311778272,1705385468241,-159.51,0.00022898,2]
[311778273,1705385468251,-112234.43683847,0.000229,2]
[311778274,1705385468262,-58000.0,0.000229,2]
[311778275,1705385468272,-150.14425657,0.000229,2]
[311778276,1705385468281,-150.14425608,0.000229,2]
[311778277,1705385468291,-150.14425608,0.000229,2]
[311778278,1705385468301,-150.14425608,0.000229,2]
[311778279,1705385468311,-150.14425608,0.000229,2]
[311778280,1705385468320,-150.14425608,0.000229,2]
[311778281,1705385468330,-150.14425608,0.000229,2]
[311778282,1705385468340,-150.14425608,0.000229,2]
[311778283,1705385468350,-150.14425608,0.000229,2]
[311778284,1705385468364,-150.14425608,0.000229,2]
[311778285,1705385468374,-150.14425608,0.000229,2]
[311778286,1705385468384,-150.14425608,0.000229,2]
[311778287,1705385468394,-150.14425608,0.000229,2]
[311778288,1705385468404,-150.14425608,0.000229,2]
[311778289,1705385468414,-150.14425608,0.000229,2]
[311778290,1705385468424,-150.14425608,0.000229,2]
[311778291,1705385468435,-150.14425608,0.000229,2]
[311778292,1705385468445,-150.14425608,0.000229,2]
[311778293,1705385468455,-150.14425608,0.000229,2]
[311778294,1705385468466,-150.14425608,0.000229,2]
[311778295,1705385468476,-150.14425608,0.000229,2]
[311778296,1705385468486,-150.14425608,0.000229,2]
[311778297,1705385468496,-150.14425608,0.000229,2]
[311778298,1705385468506,-150.14425608,0.000229,2]
[311778299,1705385468516,-150.14425608,0.000229,2]
[311778300,1705385468526,-150.14425608,0.000229,2]
[311778301,1705385468536,-150.14425608,0.000229,2]
[311778302,1705385468546,-150.14425608,0.000229,2]
[311778303,1705385468556,-150.14425608,0.000229,2]
[311778304,1705385468788,-150.14425608,0.000229,2]
[311778305,1705385468798,-150.14425608,0.000229,2]
[311778306,1705385468808,-150.14425608,0.000229,2]
[311778307,1705385468818,-150.14425608,0.000229,2]
[311778308,1705385468827,-150.14425608,0.000229,2]
[311778309,1705385468836,-150.14425608,0.000229,2]
[311778310,1705385468845,-150.14425608,0.000229,2]
[311778311,1705385468855,-150.14425608,0.000229,2]
[311778312,1705385468864,-150.14425608,0.000229,2]
[311778313,1705385468874,-150.14425608,0.000229,2]
[311778314,1705385468882,-150.14425608,0.000229,2]
[311778315,1705385468892,-150.14425608,0.000229,2]
[311778316,1705385468901,-150.14425608,0.000229,2]
[311778317,1705385468910,-150.14425608,0.000229,2]
[311778318,1705385468920,-150.14425608,0.000229,2]
[311778319,1705385468929,-150.14425608,0.000229,2]
[311778320,1705385468938,-150.14425608,0.000229,2]
[311778321,1705385468951,-150.14425608,0.000229,2]
[311778322,1705385468960,-150.14425608,0.000229,2]
[311778323,1705385468971,-150.14425608,0.000229,2]
[311778324,1705385468981,-150.14425608,0.000229,2]
[311778325,1705385468992,-150.14425608,0.000229,2]
[311778326,1705385469001,-5800.0,0.000229,2]
[311778327,1705385469011,-12261.18046386,0.000229,2]
[311778328,1705385469021,-221.0018898,0.000229,2]
[311778329,1705385469031,-487.38757579,0.000229,2]
[311778330,1705385469041,-1255.11169177,0.000229,2]
[311778331,1705385469051,-159.17,0.00022953,2]
[311778332,1705385469062,-500.0,0.00022968,2]
[311778333,1705385469072,-836.6,0.00022968,2]
[311778334,1705385469081,-3098.79,0.00022968,2]
[311778335,1705385469091,-1234.93,0.00022968,2]
[311778336,1705385469101,-973.39,0.00022968,2]
[311778337,1705385469111,-713.91,0.00022968,2]
[311778338,1705385469121,-500.0,0.00022968,2]
[311778339,1705385469130,-1730.47,0.00022968,2]
[311778340,1705385469141,-2927.87,0.00022968,2]
[311778341,1705385469152,-9055.71,0.00022968,2]
[311778342,1705385469162,-16763.67,0.00022968,2]
[311778343,1705385469172,-1214.66,0.00022968,2]
[311778344,1705385469181,-2255.35,0.00022968,2]
[311778345,1705385469191,-1265.76,0.00022968,2]
[311778346,1705385469200,-1147.92,0.00022968,2]
[311778347,1705385469210,-791.13,0.00022968,2]
[311778348,1705385469219,-1014.02,0.00022968,2]
[311778349,1705385469231,-4858.62,0.00022968,2]
[311778350,1705385469241,-696.87,0.00022968,2]
[311778351,1705385469251,-500.0,0.00022968,2]
[311778352,1705385469261,-500.0,0.00022968,2]
[311778353,1705385469271,-546.68,0.00022968,2]
[311778354,1705385469280,-1132.27,0.00022968,2]
[311778355,1705385469290,-1390.33,0.00022968,2]
[311778356,1705385469300,-500.0,0.00022968,2]
[311778357,1705385469309,-1235.03,0.00022968,2]
[311778358,1705385469319,-500.0,0.00022968,2]
[311778359,1705385469328,-500.0,0.00022968,2]
[311778360,1705385469339,-779.65,0.00022968,2]
[311778361,1705385469350,-1124.57,0.00022968,2]
[311778362,1705385469360,-594.47,0.00022968,2]
[311778363,1705385469370,-829.87,0.00022968,2]
[311778364,1705385469380,-962.26,0.00022968,2]
[311778365,1705385469390,-500.0,0.00022968,2]
[311778366,1705385469400,-1124.9,0.00022968,2]
[311778367,1705385469410,-10780.83,0.00022968,2]
[311778368,1705385469420,-874.03,0.00022968,2]
[311778369,1705385469431,-2935.41,0.00022968,2]
[311778370,1705385469441,-500.0,0.00022968,2]
[311778371,1705385469451,-782.01,0.00022968,2]
[311778372,1705385469462,-571.22,0.00022968,2]
[311778373,1705385469471,-500.0,0.00022968,2]
[311778374,1705385469480,-669.97,0.00022968,2]
[311778375,1705385469489,-1114.36,0.00022968,2]
[311778376,1705385469499,-968.54,0.00022968,2]
[311778377,1705385469509,-1582.72,0.00022968,2]
[311778378,1705385469519,-852.25,0.00022968,2]
[311778379,1705385469529,-389.35945155,0.00022968,2]
[311778380,1705385469540,-979.04,0.00022968,2]
[311778381,1705385469550,-657.16,0.00022968,2]
[311778382,1705385469561,-1642.19,0.00022968,2]
[311778383,1705385469572,-1195.9,0.00022968,2]
[311778384,1705385469582,-606.27,0.00022968,2]
[311778385,1705385469591,-685.55,0.00022968,2]
[311778386,1705385469601,-500.0,0.00022968,2]
[311778387,1705385469613,-500.0,0.00022968,2]
[311778388,1705385469623,-864.86,0.00022968,2]
[311778389,1705385469633,-1416.9,0.00022968,2]
[311778390,1705385469643,-500.0,0.00022968,2]
[311778391,1705385469654,-528.37,0.00022968,2]
[311778392,1705385469665,-864.83,0.00022968,2]
[311778393,1705385469675,-1830.12,0.00022968,2]
[311778394,1705385469685,-595.6,0.00022968,2]
[311778395,1705385469695,-2071.14,0.00022968,2]
[311778396,1705385469706,-681.17,0.00022968,2]
[311778397,1705385469716,-500.0,0.00022969,2]
[311778398,1705385469726,-777.47,0.00022969,2]
[311778399,1705385469736,-500.0,0.00022969,2]
[311778400,1705385469746,-581.69,0.00022969,2]
[311778401,1705385469756,-500.0,0.00022969,2]
[311778402,1705385469766,-559.38,0.00022969,2]
[311778403,1705385469776,-500.0,0.00022969,2]
[311778404,1705385469786,-500.0,0.00022969,2]
[311778405,1705385469796,-749.27,0.00022969,2]
[311778406,1705385469806,-566.44,0.00022969,2]
[311778407,1705385469816,-500.0,0.00022969,2]
[311778408,1705385469826,-603.94,0.00022969,2]
[311778409,1705385469836,-500.0,0.00022969,2]
[311778410,1705385469847,-500.0,0.00022969,2]
[311778411,1705385469861,-831.93,0.00022969,2]
[311778412,1705385469871,-500.0,0.00022969,2]
[311778413,1705385469881,-500.0,0.00022969,2]
[311778414,1705385469891,-500.0,0.00022969,2]
[311778415,1705385469902,-500.0,0.00022969,2]
[311778416,1705385469912,-500.0,0.00022969,2]
[311778417,1705385469922,-500.0,0.00022969,2]
[311778418,1705385469934,-500.0,0.00022969,2]
[311778419,1705385469944,-647.02685092,0.00022969,2]
[311778420,1705385469954,-500.0,0.00022969,2]
[311778421,1705385469964,-500.0,0.00022969,2]
[311778422,1705385469976,-1035.05,0.00022969,2]
[311778423,1705385469986,-660.74,0.00022969,2]
[311778424,1705385469995,-500.0,0.00022969,2]
[311778425,1705385470006,-500.0,0.00022969,2]
[311778426,1705385470015,-500.0,0.00022969,2]
[311778427,1705385470025,-840.37,0.00022969,2]
[311778428,1705385470035,-582.74,0.00022969,2]
[311778429,1705385470045,-500.0,0.00022969,2]
[311778430,1705385470054,-585.48,0.00022969,2]
[311778431,1705385470065,-500.0,0.00022969,2]
[311778432,1705385470074,-500.0,0.00022969,2]
[311778433,1705385470084,-500.0,0.00022969,2]
[311778434,1705385470094,-557.08,0.00022969,2]
[311778435,1705385470103,-500.0,0.00022969,2]
[311778436,1705385470115,-500.0,0.00022969,2]
[311778437,1705385470124,-743.54,0.00022969,2]
[311778438,1705385470134,-500.0,0.00022969,2]
[311778439,1705385470143,-500.0,0.00022969,2]
[311778440,1705385470153,-500.0,0.00022969,2]
[311778441,1705385470163,-561.37,0.00022969,2]
[311778442,1705385470172,-500.0,0.00022969,2]
[311778443,1705385470182,-500.0,0.00022969,2]
[311778444,1705385470192,-500.0,0.00022969,2]
[311778445,1705385470201,-500.0,0.00022969,2]
[311778446,1705385470211,-745.28,0.00022969,2]
[311778447,1705385470221,-500.0,0.00022969,2]
[311778448,1705385470231,-500.0,0.00022969,2]
[311778449,1705385470241,-599.0,0.00022969,2]
[311778450,1705385470252,-500.0,0.00022969,2]
[311778451,1705385470261,-500.0,0.00022969,2]
[311778452,1705385470271,-500.0,0.00022969,2]
[311778453,1705385470280,-512.92,0.00022969,2]
[311778454,1705385470290,-606.79123771,0.00022969,2]
[311778455,1705385470300,-500.0,0.00022969,2]
[311778456,1705385470310,-522.85,0.00022969,2]
[311778457,1705385470320,-500.0,0.00022969,2]
[311778458,1705385470329,-583.92,0.00022969,2]
[311778459,1705385470340,-500.0,0.00022969,2]
[311778460,1705385470349,-500.0,0.00022969,2]
[311778461,1705385470360,-500.0,0.00022969,2]
[311778462,1705385470370,-2063.09,0.00022969,2]
[311778463,1705385470380,-500.0,0.00022969,2]
[311778464,1705385470390,-553.91,0.00022969,2]
[311778465,1705385470399,-500.0,0.00022969,2]
[311778466,1705385470409,-524.28,0.00022969,2]
[311778467,1705385470419,-500.0,0.00022969,2]
[311778468,1705385470429,-500.0,0.00022969,2]
[311778469,1705385470439,-500.0,0.00022969,2]
[311778470,1705385470449,-500.0,0.00022969,2]
[311778471,1705385470459,-500.0,0.00022969,2]
[311778472,1705385470469,-1212.98,0.00022969,2]
[311778473,1705385470478,-1245.77,0.00022969,2]
[311778474,1705385470487,-500.0,0.00022969,2]
[311778475,1705385470497,-655.96,0.00022969,2]
[311778476,1705385470507,-500.0,0.00022969,2]
[311778477,1705385470516,-500.0,0.00022969,2]
[311778478,1705385470526,-500.0,0.00022969,2]
[311778479,1705385470536,-617.89,0.00022969,2]
[311778480,1705385470546,-507.6,0.00022969,2]
[311778481,1705385470556,-500.0,0.00022969,2]
[311778482,1705385470565,-500.0,0.00022969,2]
[311778483,1705385470575,-500.0,0.00022969,2]
[311778484,1705385470585,-590.42,0.00022969,2]
[311778485,1705385470594,-500.0,0.00022969,2]
[311778486,1705385470604,-396.65245099,0.00022969,2]
[311778487,1705385470616,-700.13,0.00022969,2]
[311778488,1705385470626,-554.9,0.00022969,2]
[311778489,1705385470635,-500.0,0.00022969,2]
[311778490,1705385470644,-500.0,0.00022969,2]
[311778491,1705385470653,-500.0,0.00022969,2]
[311778492,1705385470662,-665.91,0.00022969,2]
[311778493,1705385470672,-500.0,0.00022969,2]
[311778494,1705385470682,-995.38,0.00022969,2]
[311778495,1705385470692,-500.0,0.00022969,2]
[311778496,1705385470702,-1138.13,0.00022969,2]
[311778497,1705385470711,-500.0,0.00022969,2]
[311778498,1705385470721,-504.68,0.00022969,2]
[311778499,1705385470731,-500.0,0.00022969,2]
[311778500,1705385470742,-500.0,0.00022969,2]
[311778501,1705385470751,-869.31,0.00022969,2]
[311778502,1705385470761,-500.0,0.00022969,2]
[311778503,1705385470772,-628.28,0.00022969,2]
[311778504,1705385470781,-551.54,0.00022969,2]
[311778505,1705385470790,-165.79317393,0.00022969,2]
[311778506,1705385470801,-500.0,0.00022969,2]
[311778507,1705385470811,-500.0,0.00022969,2]
[311778508,1705385470821,-500.0,0.00022969,2]
[311778509,1705385470830,-444.28528979,0.00022969,2]
[311778510,1705385470841,-500.0,0.00022969,2]
[311778511,1705385470851,-500.0,0.00022969,2]
[311778512,1705385470863,-570.74,0.00022969,2]
[311778513,1705385470872,-500.0,0.00022969,2]